lending/lending_fUSD_20250808
["ID","MTS","AMOUNT","RATE_DAILY","PERIOD"]
[377921914,1754613198232,-610.33,0.00023835,2]
[377921915,1754613198242,-1543.29,0.00023835,2]
[377921916,1754613198251,-802.15,0.00023835,2]
[377921917,1754613198261,-405.06,0.00023835,2]
[377921918,1754613198270,-400.0,0.00023835,2]
[377921919,1754613198280,-1052.0,0.00023835,2]
[377921920,1754613198290,-400.0,0.00023835,2]
[377921921,1754613198300,-950.22,0.00023835,2]
[377921922,1754613198309,-903.46,0.00023835,2]
[377921923,1754613198319,-1188.56,0.00023835,2]
[377921924,1754613198329,-400.0,0.00023835,2]
[377921925,1754613198338,-1340.86,0.00023835,2]
[377921926,1754613198347,-511.85,0.00023835,2]
[377921927,1754613198357,-502.43,0.00023835,2]
[377921928,1754613198367,-538.68,0.00023835,2]
[377921929,1754613198376,-469.08,0.00023835,2]
[377921930,1754613198386,-431.81,0.00023835,2]
[377921931,1754613198395,-415.03,0.00023835,2]
[377921932,1754613198405,-400.0,0.00023835,2]
[377921933,1754613198414,-400.0,0.00023835,2]
[377921934,1754613198427,-652.84,0.00023835,2]
[377921935,1754613198437,-448.34,0.00023835,2]
[377921936,1754613198446,-613.1,0.00023835,2]
[377921937,1754613198457,-400.0,0.00023835,2]
[377921938,1754613198466,-468.72,0.00023835,2]
[377921939,1754613198476,-1054.59,0.00023835,2]
[377921940,1754613198486,-560.03,0.00023835,2]
[377921941,1754613198500,-400.0,0.00023835,2]
[377921942,1754613198510,-606.31,0.00023835,2]
[377921943,1754613198519,-1129.63,0.00023835,2]
[377921944,1754613198529,-744.37,0.00023835,2]
[377921945,1754613198538,-771.07,0.00023835,2]
[377921946,1754613198547,-1372.41,0.00023835,2]
[377921947,1754613198557,-830.78,0.00023835,2]
[377921948,1754613198566,-1290.29,0.00023835,2]
[377921949,1754613198575,-463.32,0.00023835,2]
[377921950,1754613198585,-383.56230791,0.00023835,2]
[377921951,1754613198594,-643.55,0.00023835,2]
[377921952,1754613198604,-400.0,0.00023835,2]
[377921953,1754613198614,-400.0,0.00023835,2]
[377921954,1754613198623,-792.51,0.00023835,2]
[377921955,1754613198633,-720.13,0.00023835,2]
[377921956,1754613198644,-526.14,0.00023835,2]
[377921957,1754613198654,-690.34,0.00023835,2]
[377921958,1754613198663,-767.24,0.00023835,2]
[377921959,1754613198675,-784.03,0.00023835,2]
[377921960,1754613198685,-592.46,0.00023835,2]
[377921961,1754613198694,-838.34,0.00023835,2]
[377921962,1754613198704,-619.45,0.00023835,2]
[377921963,1754613198713,-400.0,0.00023835,2]
[377921964,1754613198723,-400.0,0.00023835,2]
[377921965,1754613198733,-430.58,0.00023835,2]
[377921966,1754613198743,-400.0,0.00023835,2]
[377921967,1754613198753,-400.0,0.00023835,2]
[377921968,1754613198762,-364.0,0.00023835,2]
[377921969,1754613198772,-887.56,0.00023835,2]
[377921970,1754613198782,-1086.27,0.00023835,2]
[377921971,1754613198791,-1398.35,0.00023835,2]
[377921972,1754613198801,-1137.31,0.00023835,2]
[377921973,1754613198810,-488.07,0.00023835,2]
[377921974,1754613198820,-491.89654279,0.00023835,2]
[377921975,1754613198830,-433.15,0.00023835,2]
[377921976,1754613198839,-711.54,0.00023835,2]
[377921977,1754613198849,-969.77,0.00023835,2]
[377921978,1754613198859,-644.96,0.00023835,2]
[377921979,1754613198869,-615.2,0.00023835,2]
[377921980,1754613198882,-580.71,0.00023835,2]
[377921981,1754613198892,-1326.15,0.00023835,2]
[377921982,1754613198901,-745.61,0.00023835,2]
[377921983,1754613198911,-777.93,0.00023835,2]
[377921984,1754613198922,-533.67,0.00023835,2]
[377921985,1754613198932,-1764.53,0.00023835,2]
[377921986,1754613198942,-400.0,0.00023835,2]
[377921987,1754613198952,-1146.04,0.00023835,2]
[377921988,1754613198962,-678.35,0.00023835,2]
[377921989,1754613198972,-400.0,0.00023835,2]
[377921990,1754613198985,-400.0,0.00023835,2]
[377921991,1754613198996,-595.92,0.00023835,2]
[377921992,1754613199006,-1128.98,0.00023835,2]
[377921993,1754613199016,-1058.02,0.00023835,2]
[377921994,1754613199026,-467.91,0.00023835,2]
[377921995,1754613199036,-460.25,0.00023835,2]
[377921996,1754613199046,-684.85,0.00023835,2]
[377921997,1754613199056,-1822.08,0.00023835,2]
[377921998,1754613199065,-519.11,0.00023835,2]
[377921999,1754613199075,-834.5,0.00023835,2]
[377922000,1754613199085,-498.62,0.00023835,2]
[377922001,1754613199095,-400.0,0.00023835,2]
[377922002,1754613199105,-400.0,0.00023835,2]
[377922003,1754613199115,-431.49,0.00023835,2]
[377922004,1754613199125,-400.0,0.00023835,2]
[377922005,1754613199134,-756.51,0.00023835,2]
[377922006,1754613199144,-753.02,0.00023835,2]
[377922007,1754613199153,-400.0,0.00023835,2]
[377922008,1754613199163,-474.3,0.00023835,2]
[377922009,1754613199174,-400.0,0.00023835,2]
[377922010,1754613199184,-1312.14,0.00023835,2]
[377922011,1754613199194,-530.37,0.00023835,2]
[377922012,1754613199205,-488.75,0.00023835,2]
[377922013,1754613199215,-723.03,0.00023835,2]
[377922014,1754613199224,-664.1,0.00023835,2]
[377922015,1754613199234,-753.14,0.00023835,2]
[377922016,1754613199244,-400.0,0.00023835,2]
[377922017,1754613199254,-481.93,0.00023835,2]
[377922018,1754613199264,-681.29,0.00023835,2]
[377922019,1754613199273,-1362.2,0.00023835,2]
[377922020,1754613199284,-400.0,0.00023835,2]
[377922021,1754613199293,-1202.92,0.00023835,2]
[377922022,1754613199303,-908.09,0.00023835,2]
[377922023,1754613199313,-400.0,0.00023835,2]
[377922024,1754613199323,-1356.82,0.00023835,2]
[377922025,1754613199333,-642.93,0.00023835,2]
[377922026,1754613199343,-558.14,0.00023835,2]
[377922027,1754613199352,-857.38,0.00023835,2]
[377922028,1754613199362,-600.87,0.00023835,2]
[377922029,1754613199372,-1113.28,0.00023835,2]
[377922030,1754613199381,-1063.89,0.00023835,2]
[377922031,1754613199391,-766.74,0.00023835,2]
[377922032,1754613199401,-473.3,0.00023835,2]
[377922033,1754613199411,-188.73657114,0.00023835,2]
[377922034,1754613199421,-702.23,0.00023835,2]
[377922035,1754613199432,-400.0,0.00023835,2]
[377922036,1754613199441,-697.81,0.00023835,2]
[377922037,1754613199451,-593.88,0.00023835,2]
[377922038,1754613199460,-835.59,0.00023835,2]
[377922039,1754613199470,-787.56,0.00023835,2]
[377922040,1754613199479,-1070.57,0.00023835,2]
[377922041,1754613199489,-714.37,0.00023835,2]
[377922042,1754613199499,-565.06,0.00023835,2]
[377922043,1754613199509,-805.74,0.00023835,2]
[377922044,1754613199518,-1013.85,0.00023835,2]
[377922045,1754613199528,-446.94,0.00023835,2]
[377922046,1754613199537,-518.84,0.00023835,2]
[377922047,1754613199547,-634.1,0.00023835,2]
[377922048,1754613199556,-668.96,0.00023835,2]
[377922049,1754613199566,-997.03,0.00023835,2]
[377922050,1754613199575,-1310.15,0.00023835,2]
[377922051,1754613199585,-539.85,0.00023835,2]
[377922052,1754613199594,-823.13,0.00023835,2]
[377922053,1754613199604,-542.82,0.00023835,2]
[377922054,1754613199613,-602.12,0.00023835,2]
[377922055,1754613199622,-1520.38,0.00023835,2]
[377922056,1754613199634,-1166.4,0.00023835,2]
[377922057,1754613199645,-400.0,0.00023835,2]
[377922058,1754613199655,-400.0,0.00023835,2]
[377922059,1754613199665,-437.1,0.00023835,2]
[377922060,1754613199677,-677.81,0.00023835,2]
[377922061,1754613199687,-1322.15,0.00023835,2]
[377922062,1754613199696,-400.0,0.00023835,2]
[377922063,1754613199706,-439.53,0.00023835,2]
[377922064,1754613199715,-400.0,0.00023835,2]
[377922065,1754613199725,-729.31,0.00023835,2]
[377922066,1754613199734,-455.12,0.00023835,2]
[377922067,1754613199744,-440.74,0.00023835,2]
[377922068,1754613199753,-1225.17,0.00023835,2]
[377922069,1754613199763,-400.0,0.00023835,2]
[377922070,1754613199772,-1460.14,0.00023835,2]
[377922071,1754613199782,-400.0,0.00023835,2]
[377922072,1754613199793,-535.87,0.00023835,2]
[377922073,1754613199803,-400.0,0.00023835,2]
[377922074,1754613199813,-400.0,0.00023835,2]
[377922075,1754613199823,-400.0,0.00023835,2]
[377922076,1754613199832,-965.56,0.00023835,2]
[377922077,1754613199842,-473.14,0.00023835,2]
[377922078,1754613199852,-1112.82,0.00023835,2]
[377922079,1754613199861,-343.9559859,0.00023835,2]
[377922080,1754613199872,-592.4,0.00023835,2]
[377922081,1754613199885,-1239.98,0.00023835,2]
[377922082,1754613199895,-546.56,0.00023835,2]
[377922083,1754613199906,-412.93,0.00023835,2]
[377922084,1754613199915,-407.77920486,0.00023835,2]
[377922085,1754613199927,-1332.23,0.00023835,2]
[377922086,1754613199936,-1121.49,0.00023835,2]
[377922087,1754613199946,-1921.83,0.00023835,2]
[377922088,1754613199957,-477.33,0.00023835,2]
[377922089,1754613199967,-2373.45,0.00023835,2]
[377922090,1754613199977,-867.66,0.00023835,2]
[377922091,1754613199986,-400.0,0.00023835,2]
[377922092,1754613199996,-434.62,0.00023835,2]
[377922093,1754613200006,-586.09,0.00023835,2]
[377922094,1754613200016,-633.66,0.00023835,2]
[377922095,1754613200026,-1031.22,0.00023835,2]
[377922096,1754613200036,-591.29,0.00023835,2]
[377922097,1754613200046,-1239.8,0.00023835,2]
[377922098,1754613200056,-419.72,0.00023835,2]
[377922099,1754613200066,-433.91,0.00023835,2]
[377922100,1754613200075,-765.3,0.00023835,2]
[377922101,1754613200084,-1091.91,0.00023835,2]
[377922102,1754613200095,-718.67,0.00023835,2]
[377922103,1754613200105,-400.0,0.00023835,2]
[377922104,1754613200115,-942.73,0.00023835,2]
[377922105,1754613200125,-400.0,0.00023835,2]
[377922106,1754613200135,-655.59,0.00023835,2]
[377922107,1754613200145,-549.44,0.00023835,2]
[377922108,1754613200156,-706.48,0.00023835,2]
[377922109,1754613200165,-798.23,0.00023835,2]
[377922110,1754613200176,-1153.34,0.00023835,2]
[377922111,1754613200186,-1177.75,0.00023835,2]
[377922112,1754613200196,-549.94,0.00023835,2]
[377922113,1754613200206,-560.12,0.00023835,2]
[377922114,1754613200216,-819.45,0.00023835,2]
[377922115,1754613200226,-472.38,0.00023835,2]
[377922116,1754613200237,-895.98,0.00023835,2]
[377922117,1754613200246,-804.91,0.00023835,2]
[377922118,1754613200255,-638.56,0.00023835,2]
[377922119,1754613200265,-1258.89,0.00023835,2]
[377922120,1754613200275,-593.81,0.00023835,2]
[377922121,1754613200285,-622.14,0.00023835,2]
[377922122,1754613200294,-352.152162,0.00023835,2]
[377922123,1754613200303,-352.152162,0.00023835,2]
[377922124,1754613200312,-1287.29,0.00023835,2]
[377922125,1754613200321,-1105.48,0.00023835,2]
[377922126,1754613200331,-1707.57,0.00023835,2]
[377922127,1754613200340,-1063.27,0.00023835,2]
[377922128,1754613200350,-1515.17,0.00023835,2]
[377922129,1754613200360,-1621.03,0.00023835,2]
[377922130,1754613200370,-400.0,0.00023835,2]
[377922131,1754613200380,-420.834801,0.00023835,2]
[377922132,1754613200389,-420.834801,0.00023835,2]
[377922133,1754613200398,-400.0,0.00023835,2]
[377922134,1754613200407,-1622.23,0.00023835,2]
[377922135,1754613200418,-400.0,0.00023835,2]
[377922136,1754613200430,-1480.91,0.00023835,2]
[377922137,1754613200439,-577.01,0.00023835,2]
[377922138,1754613200448,-400.0,0.00023835,2]
[377922139,1754613200459,-400.0,0.00023835,2]
[377922140,1754613200469,-877.01,0.00023835,2]
[377922141,1754613200479,-981.54,0.00023835,2]
[377922142,1754613200488,-400.0,0.00023835,2]
[377922143,1754613200499,-1390.26,0.00023835,2]
[377922144,1754613200509,-1040.41,0.00023835,2]
[377922145,1754613200519,-447.12,0.00023835,2]
[377922146,1754613200531,-1312.79,0.00023835,2]
[377922147,1754613200542,-246.791616,0.00023835,2]
[377922148,1754613200551,-246.791616,0.00023835,2]
[377922149,1754613200562,-1460.09,0.00023835,2]
[377922150,1754613200581,-446.5,0.00023835,2]
[377922151,1754613200591,-783.24,0.00023835,2]
[377922152,1754613200602,-680.12,0.00023835,2]
[377922153,1754613200611,-400.0,0.00023835,2]
[377922154,1754613200620,-806.42,0.00023835,2]
[377922155,1754613200632,-998.91,0.00023835,2]
[377922156,1754613200641,-633.1,0.00023835,2]
[377922157,1754613200652,-400.0,0.00023835,2]
[377922158,1754613200664,-803.71,0.00023835,2]
[377922159,1754613200675,-408.97,0.00023835,2]
[377922160,1754613200684,-436.39,0.00023835,2]
[377922161,1754613200694,-1211.14,0.00023835,2]
[377922162,1754613200703,-832.28,0.00023835,2]
[377922163,1754613200713,-634.61,0.00023835,2]
[377922164,1754613200723,-1042.43,0.00023835,2]
[377922165,1754613200733,-411.96,0.00023835,2]
[377922166,1754613200743,-707.32,0.00023835,2]
[377922167,1754613200753,-455.66,0.00023835,2]
[377922168,1754613200762,-854.23,0.00023835,2]
[377922169,1754613200772,-9366.87,0.00023835,2]
[377922170,1754613200781,-484.41,0.00023835,2]
[377922171,1754613200791,-801.68,0.00023835,2]
[377922172,1754613200802,-1513.02,0.00023835,2]
[377922173,1754613200813,-447.08,0.00023835,2]
[377922174,1754613200823,-400.0,0.00023835,2]
[377922175,1754613200833,-400.0,0.00023835,2]
[377922176,1754613200843,-1785.26,0.00023835,2]
[377922177,1754613200853,-1103.08,0.00023835,2]
[377922178,1754613200865,-1209.1,0.00023835,2]
[377922179,1754613200877,-520.24561905,0.00023835,2]
[377922180,1754613200889,-512.05,0.00023835,2]
[377922181,1754613200899,-837.98,0.00023835,2]
[377922182,1754613200910,-588.83,0.00023835,2]
[377922183,1754613200920,-1338.39,0.00023835,2]
[377922184,1754613200931,-1005.96,0.00023835,2]
[377922185,1754613200942,-1973.33,0.00023835,2]
[377922186,1754613200951,-467.43,0.00023835,2]
[377922187,1754613200963,-969.26,0.00023835,2]
[377922188,1754613200974,-602.9,0.00023835,2]
[377922189,1754613200985,-1304.83,0.00023835,2]
[377922190,1754613200995,-2027.86,0.00023835,2]
[377922191,1754613201005,-703.47,0.00023835,2]
[377922192,1754613201015,-688.65,0.00023835,2]
[377922193,1754613201026,-1312.78,0.00023835,2]
[377922194,1754613201036,-2100.2,0.00023835,2]
[377922195,1754613201045,-1134.28,0.00023835,2]
[377922196,1754613201056,-1569.86,0.00023835,2]
[377922197,1754613201065,-1383.67,0.00023835,2]
[377922198,1754613201075,-529.24,0.00023835,2]
[377922199,1754613201084,-812.54,0.00023835,2]
[377922200,1754613201095,-871.51,0.00023835,2]
[377922201,1754613201111,-801.5,0.00023835,2]
[377922202,1754613201120,-603.98,0.00023835,2]
[377922203,1754613201130,-755.43,0.00023835,2]
[377922204,1754613201139,-1094.56,0.00023835,2]
[377922205,1754613201149,-1864.15,0.00023835,2]
[377922206,1754613201159,-744.46,0.00023835,2]
[377922207,1754613201169,-1856.19,0.00023835,2]
[377922208,1754613201179,-574.05,0.00023835,2]
[377922209,1754613201189,-2819.61,0.00023835,2]
[377922210,1754613201199,-400.0,0.00023835,2]
[377922211,1754613201209,-963.74,0.00023835,2]
[377922212,1754613201220,-388.95505706,0.00023835,2]
[377922213,1754613201230,-641.78,0.00023835,2]
[377922214,1754613201240,-400.0,0.00023835,2]
[377922215,1754613201249,-421.69,0.00023835,2]
[377922216,1754613201259,-711.52,0.00023835,2]
[377922217,1754613201269,-400.0,0.00023835,2]
[377922218,1754613201279,-1482.22,0.00023835,2]
[377922219,1754613201289,-1692.64,0.00023835,2]
[377922220,1754613201298,-1130.98,0.00023835,2]
[377922221,1754613201308,-400.0,0.00023835,2]
[377922222,1754613201318,-400.0,0.00023835,2]
[377922223,1754613201327,-561.73,0.00023835,2]
[377922224,1754613201337,-9960.13,0.00023835,2]
[377922225,1754613201347,-500.34,0.00023835,2]
[377922226,1754613201356,-606.66,0.00023835,2]
[377922227,1754613201366,-546.64,0.00023835,2]
[377922228,1754613201376,-1592.3,0.00023835,2]
[377922229,1754613201386,-400.0,0.00023835,2]
[377922230,1754613201395,-1471.57,0.00023835,2]
[377922231,1754613201405,-2507.14,0.00023835,2]
[377922232,1754613201414,-1316.78,0.00023835,2]
[377922233,1754613201425,-1758.45,0.00023835,2]
[377922234,1754613201434,-1144.53,0.00023835,2]
[377922235,1754613201444,-1555.78,0.00023835,2]
[377922236,1754613201453,-1450.07,0.00023835,2]
[377922237,1754613201463,-567.89,0.00023835,2]
[377922238,1754613201472,-416.35,0.00023835,2]
[377922239,1754613201482,-973.9,0.00023835,2]
[377922240,1754613201491,-2230.25,0.00023835,2]
[377922241,1754613201501,-1577.14,0.00023835,2]
[377922242,1754613201511,-1658.19,0.00023835,2]
[377922243,1754613201520,-1949.39,0.00023835,2]
[377922244,1754613201529,-2189.36,0.00023835,2]
[377922245,1754613201539,-544.97,0.00023835,2]
[377922246,1754613201549,-400.0,0.00023835,2]
[377922247,1754613201559,-1736.77,0.00023835,2]
[377922248,1754613201570,-1506.04,0.00023835,2]
[377922249,1754613201579,-1668.74,0.00023835,2]
[377922250,1754613201589,-413.27595255,0.00023835,2]
[377922251,1754613201599,-723.41,0.00023835,2]
[377922252,1754613201608,-527.26,0.00023835,2]
[377922253,1754613201619,-1222.43,0.00023835,2]
[377922254,1754613201629,-2004.13,0.00023835,2]
[377922255,1754613201640,-1196.36,0.00023835,2]
[377922256,1754613201650,-444.47,0.00023835,2]
[377922257,1754613201660,-554.57,0.00023835,2]
[377922258,1754613201670,-1393.06,0.00023835,2]
[377922259,1754613201681,-1109.06,0.00023835,2]
[377922260,1754613201691,-624.86,0.00023835,2]
[377922261,1754613201701,-1290.07,0.00023835,2]
[377922262,1754613201711,-2031.25,0.00023835,2]
[377922263,1754613201722,-469.16,0.00023835,2]
[377922264,1754613201733,-1460.91,0.00023835,2]
[377922265,1754613201745,-2043.58,0.00023835,2]
[377922266,1754613201756,-2666.29,0.00023835,2]
[377922267,1754613201767,-2592.74,0.00023835,2]
[377922268,1754613201777,-1164.41,0.00023835,2]
[377922269,1754613201787,-1333.93,0.00023835,2]
[377922270,1754613201797,-694.8,0.00023835,2]
[377922271,1754613201807,-750.53,0.00023835,2]
[377922272,1754613201977,-631.92,0.00023835,2]
[377922273,1754613201988,-1164.69,0.00023835,2]
[377922274,1754613201998,-2811.47,0.00023835,2]
[377922275,1754613202008,-518.35,0.00023835,2]
[377922276,1754613202018,-465.25,0.00023835,2]
[377922277,1754613202029,-543.99,0.00023835,2]
[377922278,1754613202039,-1133.55,0.00023835,2]
[377922279,1754613202050,-1818.01,0.00023835,2]
[377922280,1754613202061,-680.98,0.00023835,2]
[377922281,1754613202071,-1288.12,0.00023835,2]
[377922282,1754613202082,-4407.12,0.00023835,2]
[377922283,1754613202092,-1275.65,0.00023835,2]
[377922284,1754613202101,-961.95,0.00023835,2]
[377922285,1754613202112,-453.21,0.00023835,2]
[377922286,1754613202122,-400.0,0.00023835,2]
[377922287,1754613202134,-1714.38,0.00023835,2]
[377922288,1754613202146,-879.97,0.00023835,2]
[377922289,1754613202158,-400.0,0.00023835,2]
[377922290,1754613202169,-1117.23,0.00023835,2]
[377922291,1754613202179,-1989.79,0.00023835,2]
[377922292,1754613202189,-1604.94,0.00023835,2]
[377922293,1754613202199,-1383.67,0.00023835,2]
[377922294,1754613202209,-633.58,0.00023835,2]
[377922295,1754613202219,-1105.6,0.00023835,2]
[377922296,1754613202229,-426.59,0.00023835,2]
[377922297,1754613202239,-446.1,0.00023835,2]
[377922298,1754613202249,-1061.62,0.00023835,2]
[377922299,1754613202259,-2286.48,0.00023835,2]
[377922300,1754613202268,-1419.58,0.00023835,2]
[377922301,1754613202279,-608.07,0.00023835,2]
[377922302,1754613202290,-1349.34,0.00023835,2]
[377922303,1754613202299,-1214.9,0.00023835,2]
[377922304,1754613202309,-994.63,0.00023835,2]
[377922305,1754613202319,-2503.56,0.00023835,2]
[377922306,1754613202329,-668.68,0.00023835,2]
[377922307,1754613202339,-2034.76,0.00023835,2]
[377922308,1754613202348,-578.7,0.00023835,2]
[377922309,1754613202358,-400.0,0.00023835,2]
[377922310,1754613202369,-1646.26,0.00023835,2]
[377922311,1754613202378,-1276.94,0.00023835,2]
[377922312,1754613202388,-1889.62,0.00023835,2]
[377922313,1754613202398,-1501.0,0.00023835,2]
[377922314,1754613202407,-1528.92,0.00023835,2]
[377922315,1754613202417,-1025.64,0.00023835,2]
[377922316,1754613202428,-2128.65,0.00023835,2]
[377922317,1754613202438,-547.41,0.00023835,2]
[377922318,1754613202448,-1086.24,0.00023835,2]
[377922319,1754613202458,-400.0,0.00023835,2]
[377922320,1754613202467,-607.0,0.00023835,2]
[377922321,1754613202478,-1492.79,0.00023835,2]
[377922322,1754613202489,-1345.75,0.00023835,2]
[377922323,1754613202499,-420.32,0.00023835,2]
[377922324,1754613202509,-1120.37,0.00023835,2]
[377922325,1754613202519,-489.48,0.00023835,2]
[377922326,1754613202529,-1434.86,0.00023835,2]
[377922327,1754613202538,-1951.53,0.00023835,2]
[377922328,1754613202548,-2325.69,0.00023835,2]
[377922329,1754613202557,-1065.9,0.00023835,2]
[377922330,1754613202571,-917.26,0.00023835,2]
[377922331,1754613202582,-400.0,0.00023835,2]
[377922332,1754613202592,-1376.02,0.00023835,2]
[377922333,1754613202602,-1151.09,0.00023835,2]
[377922334,1754613202611,-400.0,0.00023835,2]
[377922335,1754613202621,-1350.78,0.00023835,2]
[377922336,1754613202630,-1657.63,0.00023835,2]
[377922337,1754613202639,-1848.96,0.00023835,2]
[377922338,1754613202649,-400.0,0.00023835,2]
[377922339,1754613202659,-1409.09,0.00023835,2]
[377922340,1754613202668,-451.49,0.00023835,2]
[377922341,1754613202679,-400.0,0.00023835,2]
[377922342,1754613202689,-2074.91,0.00023835,2]
[377922343,1754613202707,-608.66,0.00023835,2]
[377922344,1754613202717,-2222.15,0.00023835,2]
[377922345,1754613202727,-1588.59,0.00023835,2]
[377922346,1754613202736,-1826.78,0.00023835,2]
[377922347,1754613202746,-400.0,0.00023835,2]
[377922348,1754613202756,-1119.1,0.00023835,2]
[377922349,1754613202766,-880.06,0.00023835,2]
[377922350,1754613202776,-1481.84,0.00023835,2]
[377922351,1754613202786,-1400.02,0.00023835,2]
[377922352,1754613202796,-1688.74,0.00023835,2]
[377922353,1754613202806,-2547.87,0.00023835,2]
[377922354,1754613202816,-1345.58,0.00023835,2]
[377922355,1754613202826,-1888.11,0.00023835,2]
[377922356,1754613202836,-1803.23,0.00023835,2]
[377922357,1754613202846,-3068.61,0.00023835,2]
[377922358,1754613202856,-846.92,0.00023835,2]
[377922359,1754613202867,-3553.23,0.00023835,2]
[377922360,1754613202878,-1278.15,0.00023835,2]
[377922361,1754613202888,-2027.95,0.00023835,2]
[377922362,1754613202897,-2016.9,0.00023835,2]
[377922363,1754613202908,-1857.98,0.00023835,2]
[377922364,1754613202918,-1218.73,0.00023835,2]
[377922365,1754613202930,-633.24,0.00023835,2]
[377922366,1754613202940,-1934.76,0.00023835,2]
[377922367,1754613202951,-2106.04,0.00023835,2]
[377922368,1754613202961,-1410.86,0.00023835,2]
[377922369,1754613202971,-881.02,0.00023835,2]
[377922370,1754613202981,-1461.11,0.00023835,2]
[377922371,1754613202991,-2341.65,0.00023835,2]
[377922372,1754613203000,-400.0,0.00023835,2]
[377922373,1754613203010,-1720.55,0.00023835,2]
[377922374,1754613203020,-400.0,0.00023835,2]
[377922375,1754613203029,-1452.03,0.00023835,2]
[377922376,1754613203039,-1620.97,0.00023835,2]
[377922377,1754613203049,-496.68,0.00023835,2]
[377922378,1754613203059,-634.15,0.00023835,2]
[377922379,1754613203068,-1617.17,0.00023835,2]
[377922380,1754613203078,-2144.18,0.00023835,2]
[377922381,1754613203088,-558.88,0.00023835,2]
[377922382,1754613203098,-2107.78,0.00023835,2]
[377922383,1754613203108,-386.57364718,0.00023835,2]
[377922384,1754613203118,-2615.62,0.00023835,2]
[377922385,1754613203128,-749.36,0.00023835,2]
[377922386,1754613203137,-1657.01,0.00023835,2]
[377922387,1754613203147,-1646.42,0.00023835,2]
[377922388,1754613203156,-1193.46,0.00023835,2]
[377922389,1754613203166,-2388.63,0.00023835,2]
[377922390,1754613203175,-400.0,0.00023835,2]
[377922391,1754613203185,-1288.88,0.00023835,2]
[377922392,1754613203195,-2311.16,0.00023835,2]
[377922393,1754613203205,-2350.74,0.00023835,2]
[377922394,1754613203214,-1822.62,0.00023835,2]
[377922395,1754613203223,-612.27,0.00023835,2]
[377922396,1754613203233,-1810.11,0.00023835,2]
[377922397,1754613203242,-1537.46,0.00023835,2]
[377922398,1754613203252,-1369.16,0.00023835,2]
[377922399,1754613203261,-511.54,0.00023835,2]
[377922400,1754613203270,-482.95,0.00023835,2]
[377922401,1754613203280,-2136.59,0.00023835,2]
[377922402,1754613203289,-400.0,0.00023835,2]
[377922403,1754613203299,-1248.2,0.00023835,2]
[377922404,1754613203309,-1594.51,0.00023835,2]
[377922405,1754613203318,-1205.01,0.00023835,2]
[377922406,1754613203327,-483.64,0.00023835,2]
[377922407,1754613203337,-1678.28,0.00023835,2]
[377922408,1754613203346,-893.25,0.00023835,2]
[377922409,1754613203355,-5670.63,0.00023835,2]
[377922410,1754613203365,-845.84,0.00023835,2]
[377922411,1754613203374,-1256.8,0.00023835,2]
[377922412,1754613203384,-2578.27,0.00023835,2]
[377922413,1754613203393,-663.05,0.00023835,2]